[Event "Condigne Dutch Open 2018"]
[Site "Dieren"]
[Date "2018.07.27"]
[Round "4"]
[White "Sparenberg, Erik"]
[Black "Zwirs, Nico"]
[Result "0-1"]
[ECO "E94"]
[WhiteElo "2173"]
[BlackElo "2386"]
[Annotator "NA"]
[PlyCount "104"]
[EventDate "2018.07.24"]
[EventType "swiss"]
[EventCountry "NED"]
[SourceTitle "playchess.com"]
[Source "ChessBase"]
[SourceQuality "1"]
[TimeControl "40/5400+30:1800+30"]

1. d4 {[%emt 0:00:00]} Nf6 {[%emt 0:00:12]} 2. c4 {[%emt 0:00:00]} g6 {[%emt 0:01:06]} 3. Nc3 {[%emt 0:00:00]} Bg7 {[%emt 0:01:17]} 4. e4 {[%emt 0:00:39]} d6 {[%emt 0:00:09]} 5. Nf3 {[%emt 0:00:07]} O-O {[%emt 0:00:09]} 6. Be2 {[%emt 0:00:04]} e5 {[%emt 0:00:14]} 7. O-O {[%emt 0:00:06]} exd4 {[%emt 0:00:09]} 8. Nxd4 {[%emt 0:00:07]} Re8 {[%emt 0:00:08]} 9. f3 {[%emt 0:02:30]} c6 {[%emt 0:02:45]} 10. Bg5 {[%emt 0:09:18]} Qb6 {[%emt 0:02:49]} 11. Na4 {[%emt 0:03:04]} Qa5 {[%emt 0:01:38]} 12. Bd2 {[%emt 0:12:53]} Qd8 {[%emt 0:05:57]} 13. Bc3 {[%emt 0:05:47]} a6 {[%emt 0:00:38]} 14. c5 {[%emt 0:07:50]} dxc5 {[%emt 0:10:31]} 15. Nxc5 {[%emt 0:01:35]} b6 {[%emt 0:00:24]} 16. Ncb3 {[%emt 0:06:02]} Ra7 {[%emt 0:00:22]} 17. Qe1 {[%emt 0:03:50]} Nh5 {[%emt 0:06:53]} 18. g3 {[%emt 0:15:14]} Rae7 {[%emt 0:15:55]} 19. Nc2 {[%emt 0:07:57]} f5 {[%emt 0:04:25]} 20. Rd1 {[%emt 0:01:55]} Qc7 {[%emt 0:00:49]} 21. Bxg7 {[%emt 0:01:51]} Nxg7 {[%emt 0:00:17]} 22. Bd3 {[%emt 0:01:29]} fxe4 {[%emt 0:10:57]} 23. Bxe4 {[%emt 0:00:26]} Bf5 {[%emt 0:00:41]} 24. Nd2 {[%emt 0:00:56]} Nd7 {[%emt 0:04:56]} 25. Qf2 {[%emt 0:10:42]} Nc5 {[%emt 0:00:17]} 26. Nd4 {[%emt 0:06:32]} Nxe4 {[%emt 0:03:31]} 27. Nxe4 {[%emt 0:00:08]} Bxe4 {[%emt 0:00:07]} 28. fxe4 {[%emt 0:00:03]} c5 {[%emt 0:00:08]} 29. Nf3 {[%emt 0:01:24]} Rxe4 {[%emt 0:00:39]} 30. Qd2 {[%emt 0:01:13]} Nf5 {[%emt 0:01:36]} 31. Rfe1 {[%emt 0:00:48]} Ne3 {[%emt 0:06:42]} 32. Ng5 {[%emt 0:00:42]} Rd4 {[%emt 0:01:14]} 33. Rxe3 {[%emt 0:00:45]} Red8 {[%emt 0:00:15]} 34. Ne6 {[%emt 0:00:30]} Rxd2 {[%emt 0:04:06]} 35. Rxd2 {[%emt 0:00:28]} Rxd2 {[%emt 0:00:03]} 36. Nxc7 {[%emt 0:00:04]} Rxb2 {[%emt 0:00:01]} 37. Nxa6 {[%emt 0:00:42]} Rxa2 {[%emt 0:00:05]} 38. Nb8 {[%emt 0:00:19]} c4 {[%emt 0:01:01]} 39. Nd7 {[%emt 0:00:37]} b5 {[%emt 0:00:22]} 40. Re7 {[%emt 0:00:32]} c3 {[%emt 0:34:32]} 41. Nf6+ {[%emt 0:04:59]} Kf8 {[%emt 0:00:00]} 42. Rd7 {[%emt 0:03:38]} Ra6 {[%emt 0:00:00]} 43. Nxh7+ {[%emt 0:01:47]} Kg8 {[%emt 0:00:00]} 44. Rc7 {[%emt 0:00:24]} b4 {[%emt 0:00:00]} 45. Kg2 {[%emt 0:17:48]} Ra2+ {[%emt 0:03:29]} 46. Kh3 {[%emt 0:00:38]} c2 {[%emt 0:01:57]} 47. Kg4 {[%emt 0:01:04]} b3 {[%emt 0:00:24]} 48. Kg5 {[%emt 0:01:59]} Ra7 {[%emt 0:01:37]} 49. Nf6+ {[%emt 0:01:50]} Kf8 {[%emt 0:00:01]} 50. Rxa7 {[%emt 0:00:35]} c1=Q+ {[%emt 0:00:07]} 51. Kxg6 {[%emt 0:00:04]} Qc2+ {[%emt 0:00:10]} 52. Kg5 {[%emt 0:00:16]} Qc5+ {[%emt 0:00:07]} 0-1

[Event "Condigne Dutch Open 2018"]
[Site "Dieren"]
[Date "2018.07.27"]
[Round "4"]
[White "Elgersma, Onno"]
[Black "Viani Antonio Dcunha"]
[Result "0-1"]
[ECO "A31"]
[WhiteElo "2150"]
[BlackElo "2404"]
[Annotator "NA"]
[PlyCount "96"]
[EventDate "2018.07.24"]
[EventType "swiss"]
[EventCountry "NED"]
[SourceTitle "playchess.com"]
[Source "ChessBase"]
[SourceQuality "1"]
[TimeControl "40/5400+30:1800+30"]

1. e4 {[%emt 0:00:00]} c5 {[%emt 0:00:57]} 2. Nf3 {[%emt 0:00:00]} e6 {[%emt 0:00:09]} 3. d4 {[%emt 0:00:00]} cxd4 {[%emt 0:00:07]} 4. Nxd4 {[%emt 0:00:00]} a6 {[%emt 0:00:06]} 5. c4 {[%emt 0:00:09]} Qc7 {[%emt 0:01:30]} 6. Nc3 {[%emt 0:00:45]} Nf6 {[%emt 0:00:23]} 7. a3 {[%emt 0:00:06]} b6 {[%emt 0:03:24]} 8. Be2 {[%emt 0:02:37]} Bb7 {[%emt 0:01:05]} 9. f3 {[%emt 0:03:03]} Be7 {[%emt 0:02:06]} 10. Be3 {[%emt 0:02:17]} d6 {[%emt 0:00:46]} 11. O-O {[%emt 0:00:33]} Nbd7 {[%emt 0:00:10]} 12. Qd2 {[%emt 0:01:53]} Rc8 {[%emt 0:00:20]} 13. Rac1 {[%emt 0:01:49]} O-O {[%emt 0:01:38]} 14. b4 {[%emt 0:01:35]} Qb8 {[%emt 0:01:13]} 15. Rfd1 {[%emt 0:02:14]} Bd8 {[%emt 0:00:44]} 16. Nb3 {[%emt 0:04:59]} Bc7 {[%emt 0:06:31]} 17. Bf4 {[%emt 0:04:09]} Ne5 {[%emt 0:01:16]} 18. Bxe5 {[%emt 0:01:21]} dxe5 {[%emt 0:00:08]} 19. Kh1 {[%emt 0:02:23]} Nh5 {[%emt 0:02:25]} 20. c5 {[%emt 0:04:17]} b5 {[%emt 0:01:45]} 21. a4 {[%emt 0:16:23]} bxa4 {[%emt 0:02:49]} 22. Nxa4 {[%emt 0:01:02]} Bc6 {[%emt 0:02:38]} 23. Nc3 {[%emt 0:03:47]} Qxb4 {[%emt 0:12:11]} 24. Nd5 {[%emt 0:05:20]} Qxb3 {[%emt 0:01:32]} 25. Ne7+ {[%emt 0:00:14]} Kh8 {[%emt 0:00:05]} 26. Nxc6 {[%emt 0:00:18]} Qa4 {[%emt 0:01:38]} 27. Nb4 {[%emt 0:11:50]} Rfd8 {[%emt 0:09:19]} 28. Qb2 {[%emt 0:13:12]} Rb8 {[%emt 0:10:52]} 29. Rb1 {[%emt 0:10:46]} f6 {[%emt 0:12:48]} 30. Rxd8+ {[%emt 0:01:57]} Bxd8 {[%emt 0:00:16]} 31. Bd1 {[%emt 0:00:09]} Qb5 {[%emt 0:01:07]} 32. Be2 {[%emt 0:02:25]} Qxc5 {[%emt 0:00:35]} 33. Rd1 {[%emt 0:04:07]} Be7 {[%emt 0:01:19]} 34. Nxa6 {[%emt 0:00:45]} Rxb2 {[%emt 0:00:14]} 35. Nxc5 {[%emt 0:00:10]} Rxe2 {[%emt 0:00:07]} 36. Nxe6 {[%emt 0:00:48]} Nf4 {[%emt 0:03:12]} 37. Nc7 {[%emt 0:00:32]} h5 {[%emt 0:02:28]} 38. g3 {[%emt 0:00:17]} Nh3 {[%emt 0:00:06]} 39. Rd7 {[%emt 0:00:17]} Ng5 {[%emt 0:00:22]} 40. Kg1 {[%emt 0:00:51]} Bc5+ {[%emt 0:30:16]} 41. Kf1 {[%emt 0:30:26]} Rf2+ {[%emt 0:00:14]} 42. Ke1 {[%emt 0:00:07]} Nxf3+ {[%emt 0:00:12]} 43. Kd1 {[%emt 0:00:03]} Bd4 {[%emt 0:00:25]} 44. Rd8+ {[%emt 0:00:42]} Kh7 {[%emt 0:00:05]} 45. Re8 {[%emt 0:00:14]} Bb2 {[%emt 0:01:12]} 46. Rd8 {[%emt 0:00:24]} Nd4 {[%emt 0:00:18]} 47. Rd7 {[%emt 0:00:30]} Bc3 {[%emt 0:00:16]} 48. Re7 {[%emt 0:00:54]} Rf1# 0-1

[Event "Condigne Dutch Open 2018"]
[Site "Dieren"]
[Date "2018.07.27"]
[Round "4"]
[White "Bruil, Rembrandt"]
[Black "Hendriks, Willy"]
[Result "1/2-1/2"]
[ECO "B07"]
[WhiteElo "2126"]
[BlackElo "2417"]
[Annotator "NA"]
[PlyCount "66"]
[EventDate "2018.07.24"]
[EventType "swiss"]
[EventCountry "NED"]
[SourceTitle "playchess.com"]
[Source "ChessBase"]
[SourceQuality "1"]
[TimeControl "40/5400+30:1800+30"]

1. Nf3 {[%emt 0:00:00]} d6 {[%emt 0:00:37]} 2. d4 {[%emt 0:00:00]} g6 {[%emt 0:00:54]} 3. Nbd2 {[%emt 0:00:35]} Bg7 {[%emt 0:00:59]} 4. e4 {[%emt 0:00:32]} Nf6 {[%emt 0:03:12]} 5. Bd3 {[%emt 0:00:11]} O-O {[%emt 0:00:11]} 6. O-O {[%emt 0:00:05]} Nc6 {[%emt 0:02:11]} 7. c3 {[%emt 0:01:03]} e5 {[%emt 0:00:28]} 8. dxe5 {[%emt 0:03:30]} Nxe5 {[%emt 0:02:20]} 9. Nxe5 {[%emt 0:01:19]} dxe5 {[%emt 0:00:03]} 10. Qc2 {[%emt 0:02:52]} Nh5 {[%emt 0:07:54]} 11. Re1 {[%emt 0:15:01]} Nf4 {[%emt 0:06:59]} 12. Bf1 {[%emt 0:00:50]} Qf6 {[%emt 0:04:06]} 13. Nc4 {[%emt 0:06:41]} Re8 {[%emt 0:02:55]} 14. Ne3 {[%emt 0:02:32]} Bf8 {[%emt 0:13:19]} 15. a4 {[%emt 0:04:45]} a5 {[%emt 0:02:52]} 16. Bd2 {[%emt 0:07:27]} Bc5 {[%emt 0:01:06]} 17. Rad1 {[%emt 0:06:41]} Be6 {[%emt 0:02:26]} 18. Bc1 {[%emt 0:04:38]} Rad8 {[%emt 0:00:46]} 19. Rxd8 {[%emt 0:01:20]} Rxd8 {[%emt 0:00:16]} 20. Rd1 {[%emt 0:00:23]} Kg7 {[%emt 0:10:11]} 21. Kh1 {[%emt 0:04:45]} c6 {[%emt 0:04:35]} 22. Kg1 {[%emt 0:04:13]} Qe7 {[%emt 0:04:00]} 23. Rxd8 {[%emt 0:09:59]} Qxd8 {[%emt 0:00:03]} 24. Kh1 {[%emt 0:03:36]} f6 {[%emt 0:01:06]} 25. Nc4 {[%emt 0:03:20]} b5 {[%emt 0:04:30]} 26. axb5 {[%emt 0:05:29]} cxb5 {[%emt 0:00:02]} 27. Ne3 {[%emt 0:00:45]} Qb6 {[%emt 0:06:29]} 28. c4 {[%emt 0:01:32]} bxc4 {[%emt 0:06:47]} 29. Bxc4 {[%emt 0:01:32]} Bxe3 {[%emt 0:01:41]} 30. Bxe3 {[%emt 0:04:39]} Qb4 {[%emt 0:01:58]} 31. Bf1 {[%emt 0:00:07]} g5 {[%emt 0:04:58]} 32. Bd2 {[%emt 0:00:46]} Qb6 {[%emt 0:00:23]} 33. Kg1 {[%emt 0:00:22]} a4 {[%emt 0:02:25]} 1/2-1/2

[Event "Condigne Dutch Open 2018"]
[Site "Dieren"]
[Date "2018.07.27"]
[Round "4"]
[White "Zwirs, Jasper"]
[Black "Ojas Kulkarni"]
[Result "0-1"]
[ECO "C55"]
[WhiteElo "2124"]
[BlackElo "2226"]
[Annotator "NA"]
[PlyCount "74"]
[EventDate "2018.07.24"]
[EventType "swiss"]
[EventCountry "NED"]
[SourceTitle "playchess.com"]
[Source "ChessBase"]
[SourceQuality "1"]
[TimeControl "40/5400+30:1800+30"]

1. e4 {[%emt 0:00:00]} e5 {[%emt 0:00:09]} 2. Nf3 {[%emt 0:00:00]} Nc6 {[%emt 0:00:05]} 3. Bc4 {[%emt 0:00:00]} Nf6 {[%emt 0:00:06]} 4. d3 {[%emt 0:00:00]} h6 {[%emt 0:00:07]} 5. O-O {[%emt 0:00:17]} d6 {[%emt 0:00:12]} 6. c3 {[%emt 0:00:49]} Qe7 {[%emt 0:00:24]} 7. b4 {[%emt 0:00:38]} g5 {[%emt 0:00:08]} 8. Re1 {[%emt 0:03:54]} g4 {[%emt 0:04:28]} 9. Nfd2 {[%emt 0:04:54]} h5 {[%emt 0:01:08]} 10. Nf1 {[%emt 0:06:07]} Be6 {[%emt 0:10:34]} 11. Nbd2 {[%emt 0:02:22]} Bh6 {[%emt 0:06:56]} 12. d4 {[%emt 0:13:04]} exd4 {[%emt 0:05:06]} 13. cxd4 {[%emt 0:01:03]} Nxd4 {[%emt 0:01:01]} 14. Bb2 {[%emt 0:03:21]} Nc6 {[%emt 0:08:27]} 15. Qa4 {[%emt 0:14:24]} Bd7 {[%emt 0:03:35]} 16. e5 {[%emt 0:11:21]} Nxe5 {[%emt 0:03:02]} 17. b5 {[%emt 0:04:39]} O-O {[%emt 0:04:18]} 18. Qc2 {[%emt 0:14:07]} Rae8 {[%emt 0:15:17]} 19. Bb3 {[%emt 0:03:12]} Bxb5 {[%emt 0:11:45]} 20. Ng3 {[%emt 0:00:25]} Bd7 {[%emt 0:01:32]} 21. Nde4 {[%emt 0:03:20]} h4 {[%emt 0:01:07]} 22. Nxf6+ {[%emt 0:02:22]} Qxf6 {[%emt 0:00:07]} 23. Ne4 {[%emt 0:06:05]} Qg6 {[%emt 0:01:16]} 24. Qxc7 {[%emt 0:01:42]} Bc6 {[%emt 0:02:37]} 25. Bxe5 {[%emt 0:03:21]} dxe5 {[%emt 0:02:03]} 26. Bc2 {[%emt 0:00:30]} Bg7 {[%emt 0:05:57]} 27. Re2 {[%emt 0:00:25]} Rc8 {[%emt 0:00:46]} 28. Qe7 {[%emt 0:00:24]} Bb5 {[%emt 0:03:27]} 29. Nc3 {[%emt 0:00:29]} Bxe2 {[%emt 0:00:21]} 30. Bxg6 {[%emt 0:00:06]} Rxc3 {[%emt 0:00:05]} 31. Be4 {[%emt 0:00:42]} Rfc8 {[%emt 0:02:10]} 32. f3 {[%emt 0:00:21]} g3 {[%emt 0:00:53]} 33. hxg3 {[%emt 0:00:42]} hxg3 {[%emt 0:00:07]} 34. Bh7+ {[%emt 0:01:11]} Kxh7 {[%emt 0:00:23]} 35. Qh4+ {[%emt 0:00:04]} Bh6 {[%emt 0:01:20]} 36. Qe4+ {[%emt 0:01:06]} Kg8 {[%emt 0:00:17]} 37. Qg4+ {[%emt 0:00:30]} Kh8 {[%emt 0:00:15]} 0-1

[Event "Condigne Dutch Open 2018"]
[Site "Dieren"]
[Date "2018.07.27"]
[Round "4"]
[White "Bartakke, Amardeep S"]
[Black "Geurink, Jasper"]
[Result "0-1"]
[ECO "C01"]
[WhiteElo "2066"]
[BlackElo "2348"]
[Annotator "NA"]
[PlyCount "90"]
[EventDate "2018.07.24"]
[EventType "swiss"]
[EventCountry "NED"]
[SourceTitle "playchess.com"]
[Source "ChessBase"]
[SourceQuality "1"]
[TimeControl "40/5400+30:1800+30"]

1. e4 {[%emt 0:00:00]} e6 {[%emt 0:00:11]} 2. d4 {[%emt 1:31:00]} d5 {[%emt 0:00:09]} 3. Bd3 {[%emt 0:00:00]} c5 {[%emt 0:00:22]} 4. exd5 {[%emt 0:00:00]} exd5 {[%emt 0:00:10]} 5. Nf3 {[%emt 0:00:00]} c4 {[%emt 0:00:32]} 6. Be2 {[%emt 0:00:00]} Nf6 {[%emt 0:03:39]} 7. b3 {[%emt 0:00:00]} cxb3 {[%emt 0:00:07]} 8. axb3 {[%emt 0:00:00]} Nc6 {[%emt 0:00:07]} 9. O-O {[%emt 0:00:00]} Be7 {[%emt 0:00:06]} 10. c4 {[%emt 0:00:00]} h6 {[%emt 0:01:23]} 11. Na3 {[%emt 0:00:00]} Be6 {[%emt 0:00:54]} 12. Nc2 {[%emt 0:00:00]} O-O {[%emt 0:00:25]} 13. c5 {[%emt 0:00:00]} a5 {[%emt 0:03:59]} 14. Bd2 {[%emt 0:00:00]} b6 {[%emt 0:02:56]} 15. b4 {[%emt 0:00:00]} axb4 {[%emt 0:01:05]} 16. Nxb4 {[%emt 0:00:00]} Nxb4 {[%emt 0:00:25]} 17. Bxb4 {[%emt 0:00:00]} Ne4 {[%emt 0:00:40]} 18. Ne5 {[%emt 0:00:00]} bxc5 {[%emt 0:04:57]} 19. Nc6 {[%emt 0:00:00]} Qc7 {[%emt 0:01:38]} 20. Nxe7+ {[%emt 0:00:00]} Qxe7 {[%emt 0:00:05]} 21. dxc5 {[%emt 0:00:00]} Qf6 {[%emt 0:03:17]} 22. c6 {[%emt 0:00:00]} Rfc8 {[%emt 0:03:55]} 23. Rxa8 {[%emt 0:00:00]} Rxa8 {[%emt 0:00:05]} 24. Qc2 {[%emt 0:00:00]} Qd4 {[%emt 1:11:23]} 25. Be7 {[%emt 0:00:00]} Qc3 {[%emt 0:00:00]} 26. Rc1 {[%emt 0:00:00]} Qxc2 {[%emt 0:00:00]} 27. Rxc2 {[%emt 0:00:00]} Ra1+ {[%emt 0:00:00]} 28. Bf1 {[%emt 0:00:00]} d4 {[%emt 0:00:00]} 29. c7 {[%emt 0:00:00]} Bc8 {[%emt 0:00:00]} 30. Rb2 {[%emt 0:00:00]} Ba6 {[%emt 0:00:00]} 31. c8=Q+ {[%emt 0:00:00]} Bxc8 {[%emt 0:00:00]} 32. Rb8 {[%emt 0:00:00]} Nd2 {[%emt 0:00:00]} 33. Rxc8+ {[%emt 0:00:00]} Kh7 {[%emt 0:00:00]} 34. h3 {[%emt 0:05:31]} Rxf1+ {[%emt 0:00:00]} 35. Kh2 {[%emt 0:00:05]} Rxf2 {[%emt 0:00:00]} 36. Rd8 {[%emt 0:04:22]} Re2 {[%emt 0:00:00]} 37. Bc5 {[%emt 0:01:24]} f5 {[%emt 0:00:30]} 38. Bxd4 {[%emt 0:02:16]} f4 {[%emt 0:00:25]} 39. Kg1 {[%emt 0:01:08]} g5 {[%emt 0:01:07]} 40. Rf8 {[%emt 0:01:15]} Ne4 {[%emt 0:30:36]} 41. h4 {[%emt 0:32:49]} Kg6 {[%emt 0:01:48]} 42. Rh8 {[%emt 0:00:00]} g4 {[%emt 0:00:00]} 43. Rf8 {[%emt 0:00:00]} Re1+ {[%emt 0:00:00]} 44. Kh2 {[%emt 0:00:00]} g3+ {[%emt 0:00:00]} 45. Kh3 {[%emt 0:00:00]} Re2 {[%emt 0:06:04]} 0-1

[Event "Condigne Dutch Open 2018"]
[Site "Dieren"]
[Date "2018.07.28"]
[Round "5"]
[White "Van den Doel, Erik"]
[Black "Maatman, Nick"]
[Result "1/2-1/2"]
[ECO "D03"]
[WhiteElo "2593"]
[BlackElo "2345"]
[Annotator "ChessBase"]
[PlyCount "82"]
[EventDate "2018.07.24"]
[EventType "swiss"]
[EventCountry "NED"]
[SourceTitle "playchess.com"]
[Source "ChessBase"]
[SourceQuality "1"]
[TimeControl "40/5400+30:1800+30"]

1. d4 {[%emt 0:00:00]} Nf6 {[%emt 0:00:04]} 2. Nf3 {[%emt 0:00:00]} g6 {[%emt 0:00:30]} 3. Bg5 {[%emt 0:00:00]} Bg7 {[%emt 0:00:05]} 4. Nbd2 {[%emt 0:00:00]} O-O {[%emt 0:00:29]} 5. c3 {[%emt 0:00:07]} d5 {[%emt 0:01:35]} 6. e3 {[%emt 0:00:22]} b6 {[%emt 0:01:02]} 7. a4 {[%emt 0:06:49]} c5 {[%emt 0:09:43]} 8. a5 {[%emt 0:00:20]} Nc6 {[%emt 0:01:05]} 9. axb6 {[%emt 0:07:57]} Qxb6 {[%emt 0:00:30]} 10. Qb3 {[%emt 0:01:14]} Rb8 {[%emt 0:22:10]} 11. Qxb6 {[%emt 0:02:23]} Rxb6 {[%emt 0:01:21]} 12. Ra2 {[%emt 0:08:32]} cxd4 {[%emt 0:03:40]} 13. exd4 {[%emt 0:02:06]} Bf5 {[%emt 0:00:23]} 14. Be2 {[%emt 0:15:02]} Rfb8 {[%emt 0:12:46]} 15. b4 {[%emt 0:00:54]} a5 {[%emt 0:06:28]} 16. bxa5 {[%emt 0:15:31]} Rb2 {[%emt 0:00:07]} 17. Ra3 {[%emt 0:00:58]} e5 {[%emt 0:08:28]} 18. Nxe5 {[%emt 0:12:45]} Nxe5 {[%emt 0:00:04]} 19. dxe5 {[%emt 0:00:03]} Ne4 {[%emt 0:00:59]} 20. Nxe4 {[%emt 0:00:32]} Rb1+ {[%emt 0:08:04]} 21. Bd1 {[%emt 0:03:36]} Bxe4 {[%emt 0:00:26]} 22. f3 {[%emt 0:02:36]} Bd3 {[%emt 0:00:32]} 23. Kf2 {[%emt 0:07:24]} Bxe5 {[%emt 0:04:47]} 24. a6 {[%emt 0:01:34]} Bd6 {[%emt 0:06:58]} 25. Ra5 {[%emt 0:03:23]} R1b2+ {[%emt 0:04:34]} 26. Ke3 {[%emt 0:01:25]} Bc4 {[%emt 0:00:02]} 27. f4 {[%emt 0:02:14]} Bc7 {[%emt 0:00:55]} 28. Ra1 {[%emt 0:00:45]} Rxg2 {[%emt 0:02:39]} 29. a7 {[%emt 0:01:39]} Bb6+ {[%emt 0:00:43]} 30. Kf3 {[%emt 0:00:03]} Rf2+ {[%emt 0:00:03]} 31. Kg3 {[%emt 0:00:30]} Ra8 {[%emt 0:00:04]} 32. Re1 {[%emt 0:01:29]} Ra2 {[%emt 0:01:22]} 33. Rxa2 {[%emt 0:01:48]} Bxa2 {[%emt 0:00:02]} 34. Bh6 {[%emt 0:00:37]} Bxa7 {[%emt 0:00:25]} 35. Bf3 {[%emt 0:00:31]} Bc5 {[%emt 0:01:51]} 36. Rd1 {[%emt 0:01:23]} Rd8 {[%emt 0:00:32]} 37. Bg5 {[%emt 0:00:08]} Rd7 {[%emt 0:00:22]} 38. Bf6 {[%emt 0:00:41]} Be7 {[%emt 0:02:09]} 39. Bd4 {[%emt 0:01:08]} Bc4 {[%emt 0:00:50]} 40. Ra1 {[%emt 0:00:11]} f5 {[%emt 0:30:51]} 41. Ra8+ {[%emt 0:05:16]} Rd8 {[%emt 0:00:00]} 1/2-1/2

[Event "Condigne Dutch Open 2018"]
[Site "Dieren"]
[Date "2018.07.28"]
[Round "5"]
[White "Ivanisevic, Ivan"]
[Black "Ashwath, R.."]
[Result "1-0"]
[ECO "D38"]
[WhiteElo "2567"]
[BlackElo "2285"]
[Annotator "ChessBase"]
[PlyCount "67"]
[EventDate "2018.07.24"]
[EventType "swiss"]
[EventCountry "NED"]
[SourceTitle "playchess.com"]
[Source "ChessBase"]
[SourceQuality "1"]
[TimeControl "40/5400+30:1800+30"]

1. d4 {[%emt 0:00:00]} d5 {[%emt 0:00:38]} 2. c4 {[%emt 0:00:00]} e6 {[%emt 0:00:03]} 3. Nf3 {[%emt 0:00:10]} Nf6 {[%emt 0:00:05]} 4. Nc3 {[%emt 0:00:05]} Bb4 {[%emt 0:00:11]} 5. Qa4+ {[%emt 0:00:08]} Nc6 {[%emt 0:00:38]} 6. e3 {[%emt 0:00:06]} O-O {[%emt 0:01:50]} 7. a3 {[%emt 0:00:34]} Be7 {[%emt 0:06:44]} 8. Qc2 {[%emt 0:00:32]} a6 {[%emt 0:05:06]} 9. b3 {[%emt 0:02:19]} dxc4 {[%emt 0:08:51]} 10. bxc4 {[%emt 0:01:00]} Re8 {[%emt 0:05:17]} 11. Bb2 {[%emt 0:00:56]} b6 {[%emt 0:07:17]} 12. Rd1 {[%emt 0:01:08]} Bb7 {[%emt 0:05:51]} 13. d5 {[%emt 0:09:56]} exd5 {[%emt 0:00:51]} 14. Nxd5 {[%emt 0:00:06]} Nxd5 {[%emt 0:02:35]} 15. cxd5 {[%emt 0:00:05]} Na5 {[%emt 0:05:23]} 16. Bd3 {[%emt 0:00:10]} h6 {[%emt 0:03:38]} 17. Bh7+ {[%emt 0:01:32]} Kf8 {[%emt 0:03:03]} 18. O-O {[%emt 0:03:42]} Bf6 {[%emt 0:03:01]} 19. e4 {[%emt 0:01:49]} Qd6 {[%emt 0:09:55]} 20. Bxf6 {[%emt 0:17:49]} Qxf6 {[%emt 0:00:41]} 21. Rfe1 {[%emt 0:00:41]} Qe7 {[%emt 0:05:47]} 22. Re3 {[%emt 0:02:34]} Rad8 {[%emt 0:06:36]} 23. Nd4 {[%emt 0:02:51]} Bc8 {[%emt 0:04:06]} 24. Qc1 {[%emt 0:16:11]} g6 {[%emt 0:09:17]} 25. Nf5 {[%emt 0:23:38]} gxf5 {[%emt 0:03:10]} 26. Rg3 {[%emt 0:00:07]} Qd6 {[%emt 0:00:28]} 27. Rg8+ {[%emt 0:02:57]} Ke7 {[%emt 0:00:01]} 28. e5 {[%emt 0:00:05]} Qc5 {[%emt 0:00:58]} 29. d6+ {[%emt 0:01:02]} cxd6 {[%emt 0:02:22]} 30. exd6+ {[%emt 0:01:04]} Kd7 {[%emt 0:00:28]} 31. Bxf5+ {[%emt 0:01:17]} Re6 {[%emt 0:00:27]} 32. Bxe6+ {[%emt 0:00:14]} fxe6 {[%emt 0:00:30]} 33. Rg7+ {[%emt 0:00:05]} Kc6 {[%emt 0:00:38]} 34. Rc7+ {[%emt 0:00:06]} 1-0

[Event "Condigne Dutch Open 2018"]
[Site "Dieren"]
[Date "2018.07.28"]
[Round "5"]
[White "Lobanov, Sergei"]
[Black "Chanda, Sandipan"]
[Result "1/2-1/2"]
[ECO "B80"]
[WhiteElo "2521"]
[BlackElo "2548"]
[Annotator "ChessBase"]
[PlyCount "120"]
[EventDate "2018.07.24"]
[EventType "swiss"]
[EventCountry "NED"]
[SourceTitle "playchess.com"]
[Source "ChessBase"]
[SourceQuality "1"]
[TimeControl "40/5400+30:1800+30"]

1. e4 {[%emt 0:00:00]} c5 {[%emt 0:00:12]} 2. Nf3 {[%emt 0:00:00]} d6 {[%emt 0:00:10]} 3. d4 {[%emt 0:00:00]} cxd4 {[%emt 0:00:10]} 4. Nxd4 {[%emt 0:00:00]} Nf6 {[%emt 0:00:07]} 5. Nc3 {[%emt 0:00:00]} a6 {[%emt 0:00:05]} 6. f3 {[%emt 0:00:18]} e6 {[%emt 0:00:23]} 7. Be3 {[%emt 0:00:07]} b5 {[%emt 0:00:09]} 8. Qd2 {[%emt 0:00:07]} b4 {[%emt 0:00:10]} 9. Na4 {[%emt 0:00:33]} Nbd7 {[%emt 0:00:10]} 10. O-O-O {[%emt 0:00:28]} Qa5 {[%emt 0:00:11]} 11. b3 {[%emt 0:00:07]} Bb7 {[%emt 0:00:08]} 12. Kb1 {[%emt 0:00:07]} Nc5 {[%emt 0:00:26]} 13. a3 {[%emt 0:00:08]} Nxa4 {[%emt 0:00:11]} 14. axb4 {[%emt 0:00:07]} Qc7 {[%emt 0:00:06]} 15. bxa4 {[%emt 0:00:05]} d5 {[%emt 0:00:18]} 16. Bf4 {[%emt 0:00:18]} Bd6 {[%emt 0:00:09]} 17. Bb5+ {[%emt 0:02:21]} axb5 {[%emt 0:00:07]} 18. Nxb5 {[%emt 0:00:39]} Bxf4 {[%emt 0:00:07]} 19. Nxc7+ {[%emt 0:00:06]} Bxc7 {[%emt 0:00:06]} 20. exd5 {[%emt 0:03:09]} Bxd5 {[%emt 0:00:14]} 21. c4 {[%emt 0:10:13]} Rxa4 {[%emt 0:00:07]} 22. cxd5 {[%emt 0:00:07]} Nxd5 {[%emt 0:00:09]} 23. Rhe1 {[%emt 0:31:15]} Rxb4+ {[%emt 0:55:41]} 24. Kc2 {[%emt 0:01:22]} O-O {[%emt 0:03:05]} 25. Re4 {[%emt 0:14:11]} Rc8 {[%emt 0:03:51]} 26. Kd3 {[%emt 0:04:56]} Rb3+ {[%emt 0:00:17]} 27. Ke2 {[%emt 0:04:23]} Nc3+ {[%emt 0:00:36]} 28. Kf1 {[%emt 0:00:24]} Nxd1 {[%emt 0:01:31]} 29. Qxd1 {[%emt 0:00:29]} Rcb8 {[%emt 0:01:25]} 30. Rc4 {[%emt 0:00:19]} Rb1 {[%emt 0:00:24]} 31. Rc1 {[%emt 0:00:05]} Rxc1 {[%emt 0:00:06]} 32. Qxc1 {[%emt 0:00:04]} Bxh2 {[%emt 0:00:23]} 33. Kf2 {[%emt 0:02:33]} Be5 {[%emt 0:00:12]} 34. f4 {[%emt 0:01:48]} Bf6 {[%emt 0:00:42]} 35. g4 {[%emt 0:04:30]} h6 {[%emt 0:01:54]} 36. Qc7 {[%emt 0:01:34]} Rb2+ {[%emt 0:00:35]} 37. Kf3 {[%emt 0:00:06]} g5 {[%emt 0:00:12]} 38. fxg5 {[%emt 0:06:20]} hxg5 {[%emt 0:01:35]} 39. Qc8+ {[%emt 0:00:02]} Kg7 {[%emt 0:00:07]} 40. Qc4 {[%emt 0:00:02]} Rd2 {[%emt 0:30:18]} 41. Qe4 {[%emt 0:30:51]} Rd4 {[%emt 0:04:23]} 42. Qe2 {[%emt 0:00:07]} Rf4+ {[%emt 0:00:24]} 43. Kg2 {[%emt 0:05:04]} e5 {[%emt 0:09:39]} 44. Kg3 {[%emt 0:01:19]} e4 {[%emt 0:00:56]} 45. Kh3 {[%emt 0:02:28]} Be5 {[%emt 0:04:11]} 46. Qb5 {[%emt 0:01:16]} Rf3+ {[%emt 0:02:00]} 47. Kg2 {[%emt 0:00:13]} Rg3+ {[%emt 0:00:22]} 48. Kf2 {[%emt 0:04:35]} Bf4 {[%emt 0:00:09]} 49. Qb2+ {[%emt 0:00:00]} Kg8 {[%emt 0:00:00]} 50. Qb7 {[%emt 0:00:00]} e3+ {[%emt 0:00:00]} 51. Kf1 {[%emt 0:00:00]} Rh3 {[%emt 0:00:00]} 52. Qc8+ {[%emt 0:00:00]} Kh7 {[%emt 0:00:00]} 53. Qc2+ {[%emt 0:00:00]} Kh6 {[%emt 0:00:00]} 54. Qc6+ {[%emt 0:00:00]} Kh7 {[%emt 0:00:00]} 55. Qc2+ {[%emt 0:00:00]} Kg7 {[%emt 0:00:00]} 56. Qc3+ {[%emt 0:00:00]} f6 {[%emt 0:00:00]} 57. Qb4 {[%emt 0:01:20]} Rh1+ {[%emt 0:00:00]} 58. Ke2 {[%emt 0:02:39]} Rh2+ {[%emt 0:00:00]} 59. Kf3 {[%emt 0:00:29]} Rh3+ {[%emt 0:00:00]} 60. Ke2 {[%emt 0:02:15]} Rh2+ {[%emt 0:02:01]} 1/2-1/2